fUSD/lending_fUSD_20250219
["ID","MTS","AMOUNT","RATE_DAILY","PERIOD"]
[353651849,1739981487355,-2918.0,0.00013558,2]
[353651850,1739981487365,-433.22,0.00013561,2]
[353651851,1739981487375,-673.0,0.00013562,2]
[353651852,1739981487385,-631.48725845,0.00013562,2]
[353651853,1739981487394,-150.0,0.00013563,2]
[353651854,1739981487405,-1323.45,0.00013564,2]
[353651855,1739981487414,-150.0,0.00013572,2]
[353651856,1739981487423,-150.0,0.00013576,2]
[353651857,1739981487433,-150.0,0.00013576,2]
[353651858,1739981487442,-150.0,0.00013578,2]
[353651859,1739981487452,-1908.72,0.00013578,2]
[353651860,1739981487462,-1724.21,0.00013578,2]
[353651861,1739981487472,-1183.16,0.00013578,2]
[353651862,1739981487481,-3635.95,0.00013578,2]
[353651863,1739981487491,-508.07,0.00013578,2]
[353651864,1739981487501,-2957.13,0.00013578,2]
[353651865,1739981487511,-1260.75,0.00013578,2]
[353651866,1739981487521,-3370.75,0.00013578,2]
[353651867,1739981487531,-4466.71,0.00013578,2]
[353651868,1739981487541,-2861.46,0.00013578,2]
[353651869,1739981487550,-1037.25,0.00013578,2]
[353651870,1739981487560,-4057.21,0.00013578,2]
[353651871,1739981487570,-500.0,0.00013578,2]
[353651872,1739981487579,-1354.31,0.00013578,2]
[353651873,1739981487591,-1288.25,0.00013578,2]
[353651874,1739981487601,-152.680738,0.00013578,2]
[353651875,1739981487611,-3219.78,0.00013578,2]
[353651876,1739981487622,-500.0,0.00013578,2]
[353651877,1739981487632,-1678.83,0.00013579,2]
[353651878,1739981487642,-1847.3542,0.00013579,2]
[353651879,1739981487653,-1846.29,0.00013579,2]
[353651880,1739981487662,-1592.48,0.00013579,2]
[353651881,1739981487672,-1773.020173,0.00013579,2]
[353651882,1739981487682,-2705.75,0.00013579,2]
[353651883,1739981487691,-2407.49,0.00013579,2]
[353651884,1739981487701,-767.18,0.00013579,2]
[353651885,1739981487710,-1005.99,0.00013579,2]
[353651886,1739981487719,-500.0,0.00013579,2]
[353651887,1739981487729,-1902.19,0.00013579,2]
[353651888,1739981487740,-2400.24,0.00013579,2]
[353651889,1739981487750,-2120.53,0.00013579,2]
[353651890,1739981487761,-2293.3,0.00013579,2]
[353651891,1739981487771,-2929.98,0.00013579,2]
[353651892,1739981487781,-4447.72,0.00013579,2]
[353651893,1739981487790,-1962.14,0.00013579,2]
[353651894,1739981487800,-2210.96,0.00013579,2]
[353651895,1739981487810,-204.17,0.00013579,2]
[353651896,1739981487819,-3551.16,0.00013579,2]
[353651897,1739981487829,-2946.14,0.00013579,2]
[353651898,1739981487840,-2431.17,0.00013579,2]
[353651899,1739981487850,-5965.08,0.00013579,2]
[353651900,1739981487859,-9795.57,0.00013579,2]
[353651901,1739981487869,-1863.21,0.00013579,2]
[353651902,1739981487878,-3674.44,0.00013579,2]
[353651903,1739981487888,-1362.54,0.00013579,2]
[353651904,1739981487898,-4172.34,0.00013579,2]
[353651905,1739981487909,-2438.27,0.00013579,2]
[353651906,1739981487919,-2658.27,0.00013579,2]
[353651907,1739981487929,-586.28,0.00013579,2]
[353651908,1739981487939,-2845.19,0.00013579,2]
[353651909,1739981487948,-2996.47,0.00013579,2]
[353651910,1739981487957,-281.0,0.0001358,2]
[353651911,1739981487967,-500.0,0.0001358,2]
[353651912,1739981487976,-500.0,0.0001358,2]
[353651913,1739981487985,-587.39,0.0001358,2]
[353651914,1739981487998,-500.0,0.0001358,2]
[353651915,1739981488007,-500.0,0.0001358,2]
[353651916,1739981488016,-500.0,0.0001358,2]
[353651917,1739981488026,-500.0,0.0001358,2]
[353651918,1739981488036,-1235.18,0.0001358,2]
[353651919,1739981488047,-500.0,0.0001358,2]
[353651920,1739981488057,-500.0,0.0001358,2]
[353651921,1739981488067,-500.0,0.0001358,2]
[353651922,1739981488076,-515.08,0.0001358,2]
[353651923,1739981488087,-500.0,0.0001358,2]
[353651924,1739981488096,-500.0,0.0001358,2]
[353651925,1739981488106,-500.0,0.0001358,2]
[353651926,1739981488115,-500.0,0.0001358,2]
[353651927,1739981488125,-613.79,0.0001358,2]
[353651928,1739981488134,-500.0,0.0001358,2]
[353651929,1739981488143,-500.0,0.0001358,2]
[353651930,1739981488153,-500.0,0.0001358,2]
[353651931,1739981488163,-500.0,0.0001358,2]
[353651932,1739981488172,-500.0,0.0001358,2]
[353651933,1739981488183,-835.95,0.0001358,2]
[353651934,1739981488192,-500.0,0.0001358,2]
[353651935,1739981488202,-500.0,0.0001358,2]
[353651936,1739981488211,-727.59,0.0001358,2]
[353651937,1739981488221,-500.0,0.0001358,2]
[353651938,1739981488236,-500.0,0.0001358,2]
[353651939,1739981488245,-1297.65,0.0001358,2]
[353651940,1739981488254,-500.0,0.0001358,2]
[353651941,1739981488264,-500.0,0.0001358,2]
[353651942,1739981488274,-253.66198893,0.0001358,2]
[353651943,1739981488284,-500.0,0.0001358,2]
[353651944,1739981488293,-500.0,0.0001358,2]
[353651945,1739981488303,-500.0,0.0001358,2]
[353651946,1739981488312,-1049.75,0.0001358,2]
[353651947,1739981488323,-500.0,0.0001358,2]
[353651948,1739981488332,-1342.98,0.0001358,2]
[353651949,1739981488342,-500.0,0.0001358,2]
[353651950,1739981488351,-500.0,0.0001358,2]
[353651951,1739981488361,-867.0,0.0001358,2]
[353651952,1739981488370,-719.27,0.0001358,2]
[353651953,1739981488379,-1030.03,0.0001358,2]
[353651954,1739981488389,-548.74,0.0001358,2]
[353651955,1739981488398,-500.0,0.0001358,2]
[353651956,1739981488407,-1391.91,0.0001358,2]
[353651957,1739981488417,-500.0,0.0001358,2]
[353651958,1739981488426,-500.0,0.0001358,2]
[353651959,1739981488435,-500.0,0.0001358,2]
[353651960,1739981488445,-591.81,0.0001358,2]
[353651961,1739981488455,-680.74,0.0001358,2]
[353651962,1739981488463,-500.0,0.0001358,2]
[353651963,1739981488473,-500.0,0.0001358,2]
[353651964,1739981488482,-508.56178471,0.0001358,2]
[353651965,1739981488491,-500.0,0.0001358,2]
[353651966,1739981488500,-605.62,0.0001358,2]
[353651967,1739981488509,-719.0,0.0001358,2]
[353651968,1739981488518,-500.0,0.0001358,2]
[353651969,1739981488527,-500.0,0.0001358,2]
[353651970,1739981488536,-851.56,0.0001358,2]
[353651971,1739981488545,-858.88,0.0001358,2]
[353651972,1739981488555,-500.0,0.0001358,2]
[353651973,1739981488563,-500.0,0.0001358,2]
[353651974,1739981488572,-614.55,0.0001358,2]
[353651975,1739981488582,-525.51,0.0001358,2]
[353651976,1739981488594,-500.0,0.0001358,2]
[353651977,1739981488603,-500.0,0.0001358,2]
[353651978,1739981488611,-969.29,0.0001358,2]
[353651979,1739981488621,-500.0,0.0001358,2]
[353651980,1739981488630,-500.0,0.0001358,2]
[353651981,1739981488640,-578.62,0.0001358,2]
[353651982,1739981488649,-500.0,0.0001358,2]
[353651983,1739981488659,-684.04,0.0001358,2]
[353651984,1739981488668,-659.34,0.0001358,2]
[353651985,1739981488679,-814.31,0.0001358,2]
[353651986,1739981488688,-500.0,0.0001358,2]
[353651987,1739981488698,-573.2,0.0001358,2]
[353651988,1739981488707,-500.0,0.0001358,2]
[353651989,1739981488717,-500.0,0.0001358,2]
[353651990,1739981488726,-1087.37,0.0001358,2]
[353651991,1739981488736,-847.22,0.0001358,2]
[353651992,1739981488746,-1103.2,0.0001358,2]
[353651993,1739981488755,-953.51,0.0001358,2]
[353651994,1739981488765,-500.0,0.0001358,2]
[353651995,1739981488775,-500.0,0.0001358,2]
[353651996,1739981488785,-500.0,0.0001358,2]
[353651997,1739981488795,-500.0,0.0001358,2]
[353651998,1739981488805,-757.2,0.0001358,2]
[353651999,1739981488814,-1161.96,0.0001358,2]
[353652000,1739981488824,-500.0,0.0001358,2]
[353652001,1739981488833,-1434.63,0.0001358,2]
[353652002,1739981488844,-500.0,0.0001358,2]
[353652003,1739981488854,-500.0,0.0001358,2]
[353652004,1739981488865,-500.0,0.0001358,2]
[353652005,1739981488874,-500.0,0.0001358,2]
[353652006,1739981488884,-721.96,0.0001358,2]
[353652007,1739981488894,-500.0,0.0001358,2]
[353652008,1739981488903,-500.0,0.0001358,2]
[353652009,1739981488913,-500.0,0.0001358,2]
[353652010,1739981488922,-500.0,0.0001358,2]
[353652011,1739981488932,-500.0,0.0001358,2]
[353652012,1739981488940,-500.0,0.0001358,2]
[353652013,1739981488950,-500.0,0.0001358,2]
[353652014,1739981488959,-500.0,0.0001358,2]
[353652015,1739981488968,-500.0,0.0001358,2]
[353652016,1739981488978,-593.41,0.0001358,2]
[353652017,1739981488988,-500.0,0.0001358,2]
[353652018,1739981488997,-500.0,0.0001358,2]
[353652019,1739981489007,-500.0,0.0001358,2]
[353652020,1739981489016,-500.0,0.0001358,2]
[353652021,1739981489027,-500.0,0.0001358,2]
[353652022,1739981489036,-514.55,0.0001358,2]
[353652023,1739981489045,-500.0,0.0001358,2]
[353652024,1739981489057,-500.0,0.0001358,2]
[353652025,1739981489067,-658.19,0.0001358,2]
[353652026,1739981489076,-500.0,0.0001358,2]
[353652027,1739981489088,-500.0,0.0001358,2]
[353652028,1739981489100,-500.0,0.0001358,2]
[353652029,1739981489110,-500.0,0.0001358,2]
[353652030,1739981489119,-500.0,0.0001358,2]
[353652031,1739981489129,-500.0,0.0001358,2]
[353652032,1739981489138,-500.0,0.0001358,2]
[353652033,1739981489147,-907.8,0.0001358,2]
[353652034,1739981489156,-500.0,0.0001358,2]
[353652035,1739981489166,-500.0,0.0001358,2]
[353652036,1739981489175,-500.0,0.0001358,2]
[353652037,1739981489185,-500.0,0.0001358,2]
[353652038,1739981489194,-500.0,0.0001358,2]
[353652039,1739981489203,-518.56,0.0001358,2]
[353652040,1739981489212,-842.91,0.0001358,2]
[353652041,1739981489222,-910.58,0.0001358,2]
[353652042,1739981489232,-500.0,0.0001358,2]
[353652043,1739981489244,-614.20483664,0.0001358,2]
[353652044,1739981489256,-500.0,0.0001358,2]
[353652045,1739981489267,-500.0,0.0001358,2]
[353652046,1739981489280,-500.0,0.0001358,2]
[353652047,1739981489292,-1700.48,0.0001358,2]
[353652048,1739981489301,-500.0,0.0001358,2]
[353652049,1739981489311,-500.0,0.0001358,2]
[353652050,1739981489320,-500.0,0.0001358,2]
[353652051,1739981489330,-1467.07,0.0001358,2]
[353652052,1739981489340,-654.58,0.0001358,2]
[353652053,1739981489350,-500.0,0.0001358,2]
[353652054,1739981489359,-846.23,0.0001358,2]
[353652055,1739981489368,-500.0,0.0001358,2]
[353652056,1739981489378,-500.0,0.0001358,2]
[353652057,1739981489387,-508.72,0.0001358,2]
[353652058,1739981489396,-500.0,0.0001358,2]
[353652059,1739981489405,-886.41,0.0001358,2]
[353652060,1739981489414,-500.0,0.0001358,2]
[353652061,1739981489423,-500.0,0.0001358,2]
[353652062,1739981489433,-388.24318021,0.0001358,2]
[353652063,1739981489442,-500.0,0.0001358,2]
[353652064,1739981489452,-500.0,0.0001358,2]
[353652065,1739981489461,-578.97,0.0001358,2]
[353652066,1739981489471,-1547.71,0.0001358,2]
[353652067,1739981489482,-500.0,0.0001358,2]
[353652068,1739981489491,-1667.54,0.0001358,2]
[353652069,1739981489500,-500.0,0.0001358,2]
[353652070,1739981489510,-500.0,0.0001358,2]
[353652071,1739981489519,-500.0,0.0001358,2]
[353652072,1739981489529,-679.7,0.0001358,2]
[353652073,1739981489538,-500.0,0.0001358,2]
[353652074,1739981489547,-512.51,0.0001358,2]
[353652075,1739981489558,-771.34,0.0001358,2]
[353652076,1739981489567,-672.54,0.0001358,2]
[353652077,1739981489578,-1642.33,0.0001358,2]
[353652078,1739981489590,-623.02,0.0001358,2]
[353652079,1739981489600,-700.88,0.0001358,2]
[353652080,1739981489610,-1763.07,0.0001358,2]
[353652081,1739981489620,-1058.8,0.0001358,2]
[353652082,1739981489630,-500.0,0.0001358,2]
[353652083,1739981489641,-600.7,0.0001358,2]
[353652084,1739981489651,-1534.82,0.0001358,2]
[353652085,1739981489660,-1442.91,0.0001358,2]
[353652086,1739981489670,-745.68,0.0001358,2]
[353652087,1739981489679,-838.32,0.0001358,2]
[353652088,1739981489688,-500.0,0.0001358,2]
[353652089,1739981489698,-525.42113612,0.0001358,2]
[353652090,1739981489708,-1071.12,0.0001358,2]
[353652091,1739981489717,-586.27,0.0001358,2]
[353652092,1739981489726,-1123.84,0.0001358,2]
[353652093,1739981489736,-2348.96,0.0001358,2]
[353652094,1739981489747,-500.0,0.0001358,2]
[353652095,1739981489757,-1050.15,0.0001358,2]
[353652096,1739981489768,-881.06,0.0001358,2]
[353652097,1739981489778,-419.04184834,0.0001358,2]
[353652098,1739981489789,-500.0,0.0001358,2]
[353652099,1739981489799,-500.0,0.0001358,2]
[353652100,1739981489809,-500.0,0.0001358,2]
[353652101,1739981489818,-532.5998672,0.0001358,2]
[353652102,1739981489828,-500.0,0.0001358,2]
[353652103,1739981489841,-500.0,0.0001358,2]
[353652104,1739981489850,-1721.94,0.0001358,2]
[353652105,1739981489859,-500.0,0.0001358,2]
[353652106,1739981489869,-500.0,0.0001358,2]
[353652107,1739981489879,-1774.14,0.0001358,2]
[353652108,1739981489890,-2626.88,0.0001358,2]
[353652109,1739981489899,-500.0,0.0001358,2]
[353652110,1739981489908,-4378.38,0.0001358,2]
[353652111,1739981489917,-4564.78,0.0001358,2]
[353652112,1739981489927,-500.0,0.0001358,2]
[353652113,1739981489936,-500.0,0.0001358,2]
[353652114,1739981489946,-1219.89,0.0001358,2]
[353652115,1739981489955,-500.0,0.0001358,2]
[353652116,1739981489965,-837.92,0.0001358,2]
[353652117,1739981489975,-1220.63,0.0001358,2]
[353652118,1739981489984,-705.79,0.0001358,2]
[353652119,1739981489995,-750.7,0.0001358,2]
[353652120,1739981490005,-2297.88,0.0001358,2]
[353652121,1739981490016,-1406.06,0.0001358,2]
[353652122,1739981490026,-598.52,0.0001358,2]
[353652123,1739981490035,-500.0,0.0001358,2]
[353652124,1739981490045,-4306.96,0.0001358,2]
[353652125,1739981490055,-850.64,0.0001358,2]
[353652126,1739981490064,-1548.92,0.0001358,2]
[353652127,1739981490073,-4046.57,0.0001358,2]
[353652128,1739981490083,-500.0,0.0001358,2]
[353652129,1739981490096,-500.0,0.0001358,2]
[353652130,1739981490106,-500.0,0.0001358,2]
[353652131,1739981490116,-1817.06,0.0001358,2]
[353652132,1739981490125,-579.94,0.0001358,2]
[353652133,1739981490135,-537.41,0.0001358,2]
[353652134,1739981490144,-3247.97,0.0001358,2]
[353652135,1739981490153,-1393.67,0.0001358,2]
[353652136,1739981490163,-3207.33,0.0001358,2]
[353652137,1739981490173,-500.0,0.0001358,2]
[353652138,1739981490183,-500.0,0.0001358,2]
[353652139,1739981490193,-1068.57,0.0001358,2]
[353652140,1739981490203,-3221.83,0.0001358,2]
[353652141,1739981490212,-500.0,0.0001358,2]
[353652142,1739981490222,-509.24,0.0001358,2]
[353652143,1739981490232,-1032.47,0.0001358,2]
[353652144,1739981490244,-943.7,0.0001358,2]
[353652145,1739981490253,-2527.73,0.0001358,2]
[353652146,1739981490262,-561.48,0.0001358,2]
[353652147,1739981490274,-500.0,0.0001358,2]
[353652148,1739981490284,-1480.58,0.0001358,2]
[353652149,1739981490294,-2707.66,0.0001358,2]
[353652150,1739981490304,-3022.84,0.0001358,2]
[353652151,1739981490315,-705.48,0.0001358,2]
[353652152,1739981490325,-500.0,0.0001358,2]
[353652153,1739981490530,-1400.94,0.0001358,2]
[353652154,1739981490540,-523.15,0.0001358,2]
[353652155,1739981490550,-1048.08,0.0001358,2]
[353652156,1739981490560,-737.53,0.0001358,2]
[353652157,1739981490569,-500.0,0.0001358,2]
[353652158,1739981490579,-934.73,0.0001358,2]
[353652159,1739981490591,-500.0,0.0001358,2]
[353652160,1739981490602,-591.76,0.0001358,2]
[353652161,1739981490612,-2935.54,0.0001358,2]
[353652162,1739981490623,-500.0,0.0001358,2]
[353652163,1739981490633,-919.89,0.0001358,2]
[353652164,1739981490643,-500.0,0.0001358,2]
[353652165,1739981490653,-500.0,0.0001358,2]
[353652166,1739981490663,-1631.66,0.0001358,2]
[353652167,1739981490674,-1630.74,0.0001358,2]
[353652168,1739981490684,-500.0,0.0001358,2]
[353652169,1739981490694,-1488.16,0.0001358,2]
[353652170,1739981490704,-500.0,0.0001358,2]
[353652171,1739981490714,-853.84,0.0001358,2]
[353652172,1739981490724,-531.89,0.0001358,2]
[353652173,1739981490734,-550.84,0.0001358,2]
[353652174,1739981490743,-500.0,0.0001358,2]
[353652175,1739981490754,-1229.87,0.0001358,2]
[353652176,1739981490764,-2787.49,0.0001358,2]
[353652177,1739981490774,-500.0,0.0001358,2]
[353652178,1739981490783,-735.14,0.0001358,2]
[353652179,1739981490794,-500.0,0.0001358,2]
[353652180,1739981490804,-500.0,0.0001358,2]
[353652181,1739981490814,-2404.94,0.0001358,2]
[353652182,1739981490823,-500.0,0.0001358,2]
[353652183,1739981490833,-500.0,0.0001358,2]
[353652184,1739981490846,-1357.32,0.0001358,2]
[353652185,1739981490857,-868.88,0.0001358,2]
[353652186,1739981490867,-658.88,0.0001358,2]
[353652187,1739981490878,-651.71,0.0001358,2]
[353652188,1739981490888,-651.58,0.0001358,2]
[353652189,1739981490898,-500.0,0.0001358,2]
[353652190,1739981490908,-189.24909197,0.0001358,2]
[353652191,1739981490918,-500.0,0.0001358,2]
[353652192,1739981490927,-1016.2,0.0001358,2]
[353652193,1739981490937,-500.0,0.0001358,2]
[353652194,1739981490946,-1118.0,0.0001358,2]
[353652195,1739981490957,-1202.47,0.0001358,2]
[353652196,1739981490966,-1207.34,0.00013581,2]
[353652197,1739981490976,-1505.77,0.00013581,2]
[353652198,1739981490986,-1067.17,0.00013581,2]
[353652199,1739981490995,-500.0,0.00013581,2]
[353652200,1739981491005,-500.0,0.00013581,2]
[353652201,1739981491015,-1113.19,0.00013581,2]
[353652202,1739981491024,-911.21,0.00013581,2]
[353652203,1739981491033,-651.34,0.00013581,2]
[353652204,1739981491042,-1031.71,0.00013581,2]
[353652205,1739981491051,-759.85,0.00013581,2]
[353652206,1739981491061,-1162.39,0.00013581,2]
[353652207,1739981491071,-1299.76,0.00013581,2]
[353652208,1739981491081,-500.0,0.00013581,2]
[353652209,1739981491092,-500.0,0.00013581,2]
[353652210,1739981491102,-849.12,0.00013581,2]
[353652211,1739981491112,-1109.7,0.00013581,2]
[353652212,1739981491122,-615.67,0.00013581,2]
[353652213,1739981491132,-665.19,0.00013581,2]
[353652214,1739981491142,-500.0,0.00013581,2]
[353652215,1739981491151,-860.99,0.00013581,2]
[353652216,1739981491161,-1270.22,0.00013581,2]
[353652217,1739981491170,-1751.06,0.00013581,2]
[353652218,1739981491180,-797.36,0.00013581,2]
[353652219,1739981491190,-758.76,0.00013581,2]
[353652220,1739981491202,-500.0,0.00013581,2]
[353652221,1739981491212,-813.75,0.00013581,2]
[353652222,1739981491222,-1833.76,0.00013581,2]
[353652223,1739981491241,-1190.62,0.00013581,2]
[353652224,1739981491250,-1309.09,0.00013581,2]
[353652225,1739981491259,-671.96,0.00013581,2]
[353652226,1739981491268,-1059.62,0.00013581,2]
[353652227,1739981491278,-804.42,0.00013581,2]
[353652228,1739981491288,-771.67,0.00013581,2]
[353652229,1739981491298,-500.0,0.00013581,2]
[353652230,1739981491307,-512.14,0.00013581,2]
[353652231,1739981491318,-1003.49,0.00013581,2]
[353652232,1739981491327,-1162.25,0.00013581,2]
[353652233,1739981491337,-960.4,0.00013581,2]
[353652234,1739981491347,-500.0,0.00013581,2]
[353652235,1739981491356,-500.0,0.00013581,2]
[353652236,1739981491365,-1713.19,0.00013581,2]
[353652237,1739981491375,-787.35,0.00013581,2]
[353652238,1739981491385,-1673.22,0.00013581,2]
[353652239,1739981491394,-1201.88,0.00013581,2]
[353652240,1739981491404,-1529.79,0.00013581,2]
[353652241,1739981491413,-1923.19,0.00013581,2]
[353652242,1739981491423,-1454.02,0.00013581,2]
[353652243,1739981491433,-1769.83,0.00013581,2]
[353652244,1739981491442,-527.23,0.00013581,2]
[353652245,1739981491452,-846.13,0.00013581,2]
[353652246,1739981491462,-1387.3,0.00013581,2]
[353652247,1739981491472,-1073.32,0.00013581,2]
[353652248,1739981491481,-500.0,0.00013581,2]
[353652249,1739981491491,-1370.88,0.00013581,2]
[353652250,1739981491500,-500.0,0.00013581,2]
[353652251,1739981491510,-1188.82,0.00013581,2]
[353652252,1739981491519,-954.65,0.00013581,2]
[353652253,1739981491530,-1165.0,0.00013581,2]
[353652254,1739981491541,-1053.26,0.00013581,2]
[353652255,1739981491551,-1402.42,0.00013581,2]
[353652256,1739981491560,-1502.66,0.00013581,2]
[353652257,1739981491569,-1458.59,0.00013581,2]
[353652258,1739981491579,-1883.09,0.00013581,2]
[353652259,1739981491590,-500.0,0.00013581,2]
[353652260,1739981491611,-500.0,0.00013581,2]
[353652261,1739981491620,-540.26,0.00013581,2]
[353652262,1739981491630,-1090.36,0.00013581,2]
[353652263,1739981491640,-651.0,0.00013581,2]
[353652264,1739981491650,-590.33,0.00013581,2]
[353652265,1739981491660,-1041.61,0.00013581,2]
[353652266,1739981491669,-803.85,0.00013581,2]
[353652267,1739981491680,-1628.61,0.00013581,2]
[353652268,1739981491690,-8263.60516858,0.00013582,2]
[353652269,1739981491699,-867.43,0.00013582,2]
[353652270,1739981491709,-507.71931745,0.00013582,2]
[353652271,1739981491718,-1084.29,0.00013582,2]
[353652272,1739981491727,-500.0,0.00013582,2]
[353652273,1739981491737,-819.96,0.00013582,2]
[353652274,1739981491747,-546.22,0.00013582,2]
[353652275,1739981491756,-500.0,0.00013582,2]
[353652276,1739981491766,-500.0,0.00013582,2]
[353652277,1739981491775,-1086.38,0.00013582,2]
[353652278,1739981491785,-500.0,0.00013582,2]
[353652279,1739981491794,-978.47,0.00013582,2]
[353652280,1739981491804,-500.0,0.00013582,2]
[353652281,1739981491813,-500.0,0.00013582,2]
[353652282,1739981491824,-737.96,0.00013582,2]
[353652283,1739981491834,-539.32071584,0.00013582,2]
[353652284,1739981491844,-500.0,0.00013582,2]
[353652285,1739981491853,-500.0,0.00013582,2]
[353652286,1739981491863,-500.0,0.00013582,2]
[353652287,1739981491872,-562.17,0.00013582,2]
[353652288,1739981491882,-500.0,0.00013582,2]
[353652289,1739981491891,-821.61,0.00013582,2]
[353652290,1739981491900,-929.95,0.00013582,2]
[353652291,1739981491910,-500.0,0.00013582,2]
[353652292,1739981491919,-500.0,0.00013582,2]
[353652293,1739981491930,-500.0,0.00013582,2]
[353652294,1739981491939,-500.0,0.00013582,2]
[353652295,1739981491948,-500.0,0.00013582,2]
[353652296,1739981491958,-517.42,0.00013582,2]
[353652297,1739981491967,-500.0,0.00013582,2]
[353652298,1739981491977,-500.0,0.00013582,2]
[353652299,1739981491986,-500.0,0.00013582,2]
[353652300,1739981491996,-500.0,0.00013582,2]
[353652301,1739981492005,-181.8512677,0.00013582,2]
[353652302,1739981492015,-500.0,0.00013582,2]
[353652303,1739981492024,-500.0,0.00013582,2]
[353652304,1739981492033,-717.42,0.00013582,2]
[353652305,1739981492042,-500.0,0.00013582,2]
[353652306,1739981492051,-500.0,0.00013582,2]
[353652307,1739981492061,-517.9213051,0.00013582,2]
[353652308,1739981492071,-500.0,0.00013582,2]
[353652309,1739981492080,-592.97,0.00013582,2]
[353652310,1739981492091,-500.0,0.00013582,2]
[353652311,1739981492101,-500.0,0.00013582,2]
[353652312,1739981492110,-762.46,0.00013582,2]
[353652313,1739981492119,-500.0,0.00013582,2]
[353652314,1739981492128,-500.0,0.00013582,2]
[353652315,1739981492137,-703.18,0.00013582,2]
[353652316,1739981492148,-500.0,0.00013582,2]
[353652317,1739981492158,-537.6,0.00013582,2]
[353652318,1739981492168,-500.0,0.00013582,2]
[353652319,1739981492177,-500.0,0.00013582,2]
[353652320,1739981492187,-628.91,0.00013582,2]
[353652321,1739981492196,-500.0,0.00013582,2]
[353652322,1739981492205,-1825.39,0.00013582,2]
[353652323,1739981492215,-500.0,0.00013582,2]
[353652324,1739981492226,-548.04,0.00013582,2]
[353652325,1739981492237,-500.0,0.00013582,2]
[353652326,1739981492248,-500.0,0.00013582,2]
[353652327,1739981492257,-500.0,0.00013582,2]
[353652328,1739981492266,-500.0,0.00013582,2]
[353652329,1739981492278,-500.0,0.00013582,2]
[353652330,1739981492287,-500.0,0.00013582,2]
[353652331,1739981492297,-500.0,0.00013582,2]
[353652332,1739981492306,-500.0,0.00013582,2]
[353652333,1739981492316,-500.0,0.00013582,2]
[353652334,1739981492326,-500.0,0.00013582,2]
[353652335,1739981492338,-500.0,0.00013582,2]
[353652336,1739981492347,-541.66,0.00013582,2]
[353652337,1739981492357,-500.0,0.00013582,2]
[353652338,1739981492366,-800.02,0.00013582,2]
[353652339,1739981492376,-500.0,0.00013582,2]
[353652340,1739981492386,-575.63,0.00013582,2]
[353652341,1739981492395,-500.0,0.00013582,2]
[353652342,1739981492405,-500.0,0.00013582,2]
[353652343,1739981492415,-500.0,0.00013582,2]
[353652344,1739981492424,-584.41,0.00013582,2]
[353652345,1739981492434,-503.67289052,0.00013582,2]
[353652346,1739981492444,-500.0,0.00013582,2]
[353652347,1739981492453,-500.0,0.00013582,2]
[353652348,1739981492463,-500.0,0.00013582,2]